[Event "Live Chess"]
[Site "Chess.com"]
[Date "2023.05.20"]
[Round "-"]
[White "Nazar_777"]
[Black "chessfiction"]
[Result "0-1"]
[WhiteElo "1606"]
[BlackElo "2340"]
[TimeControl "300"]
[EndTime "14:40:55 PDT"]
[Termination "chessfiction won by checkmate"]

1. e3 {[%clk 0:04:51.5]} 1... c5 {[%clk 0:04:59.9]} 2. h4 {[%clk 0:04:50.5]}
2... Nc6 {[%clk 0:04:52.4]} 3. a3 {[%clk 0:04:49.5]} 3... d5 {[%clk 0:04:44.9]}
4. c4 {[%clk 0:04:48.6]} 4... d4 {[%clk 0:04:43.7]} 5. Nf3 {[%clk 0:04:47.1]}
5... e5 {[%clk 0:04:42.4]} 6. Qc2 {[%clk 0:04:44.9]} 6... f5 {[%clk 0:04:40.7]}
7. b3 {[%clk 0:04:42.9]} 7... e4 {[%clk 0:04:39.6]} 8. Ng1 {[%clk 0:04:41.5]}
8... d3 {[%clk 0:04:38.9]} 9. Qd1 {[%clk 0:04:40.5]} 9... Qf6 {[%clk 0:04:37.2]}
10. Nc3 {[%clk 0:04:38.8]} 10... Bd6 {[%clk 0:04:34.5]} 11. Bb2 {[%clk
0:04:37.3]} 11... Be5 {[%clk 0:04:33.7]} 12. Rb1 {[%clk 0:04:35.9]} 12... Nge7
{[%clk 0:04:32.7]} 13. Qc1 {[%clk 0:04:34.9]} 13... O-O {[%clk 0:04:30.3]} 14.
Nh3 {[%clk 0:04:33.8]} 14... f4 {[%clk 0:04:28.9]} 15. Nd5 {[%clk 0:04:29.6]}
15... Nxd5 {[%clk 0:04:26.7]} 16. cxd5 {[%clk 0:04:28.3]} 16... fxe3 {[%clk
0:04:22.2]} 17. dxe3 {[%clk 0:04:24]} 17... Bxb2 {[%clk 0:04:17.3]} 18. Qxb2
{[%clk 0:04:21.4]} 18... Ne5 {[%clk 0:04:16.5]} 19. Nf4 {[%clk 0:04:19.2]} 19...
Bg4 {[%clk 0:04:02.8]} 20. g3 {[%clk 0:04:13]} 20... Nf3+ {[%clk 0:04:00.1]} 21.
Kd1 {[%clk 0:04:10.7]} 21... Nd4+ {[%clk 0:03:55.6]} 22. Kd2 {[%clk 0:04:08.6]}
22... Nf3+ {[%clk 0:03:50.2]} 23. Kc1 {[%clk 0:04:05.2]} 23... d2+ {[%clk
0:03:48.7]} 24. Kc2 {[%clk 0:03:57.3]} 24... Qxb2+ {[%clk 0:03:38.6]} 25. Kxb2
{[%clk 0:03:55.2]} 25... Ne1 {[%clk 0:03:33.9]} 26. Bc4 {[%clk 0:03:50.6]} 26...
a6 {[%clk 0:03:29.3]} 27. d6+ {[%clk 0:03:47.4]} 27... Kh8 {[%clk 0:03:27.8]}
28. Rbxe1 {[%clk 0:03:35.3]} 28... dxe1=Q {[%clk 0:03:27.7]} 29. Rxe1 {[%clk
0:03:33.4]} 29... b5 {[%clk 0:03:25.9]} 30. Bd5 {[%clk 0:03:31.2]} 30... Rad8
{[%clk 0:03:25.2]} 31. Bxe4 {[%clk 0:03:28.5]} 31... Rxd6 {[%clk 0:03:23.6]} 32.
Bc2 {[%clk 0:03:27.1]} 32... Rd2 {[%clk 0:03:22.4]} 33. Rc1 {[%clk 0:03:24.8]}
33... Rxf2 {[%clk 0:03:20.8]} 34. Nd5 {[%clk 0:03:12]} 34... Rd8 {[%clk
0:03:16.2]} 35. e4 {[%clk 0:03:10.5]} 35... Be6 {[%clk 0:03:06.2]} 36. Ne3
{[%clk 0:03:04]} 36... Re2 {[%clk 0:03:00.4]} 37. Nf5 {[%clk 0:03:01.9]} 37...
Rdd2 {[%clk 0:02:57.2]} 38. g4 {[%clk 0:02:55.1]} 38... Rxe4 {[%clk 0:02:52]}
39. Kb1 {[%clk 0:02:53.4]} 39... Ree2 {[%clk 0:02:49.7]} 40. h5 {[%clk
0:02:51.2]} 40... Bxf5 {[%clk 0:02:43.4]} 41. gxf5 {[%clk 0:02:45.2]} 41... Kg8
{[%clk 0:02:42.5]} 42. Kb2 {[%clk 0:02:40.9]} 42... Rxc2+ {[%clk 0:02:40.1]} 43.
Rxc2 {[%clk 0:02:39.6]} 43... Rxc2+ {[%clk 0:02:40]} 44. Kxc2 {[%clk 0:02:38]}
44... Kf7 {[%clk 0:02:39.5]} 45. Kd3 {[%clk 0:02:37.5]} 45... Kf6 {[%clk
0:02:38.9]} 46. Ke4 {[%clk 0:02:36.9]} 46... c4 {[%clk 0:02:37.1]} 47. bxc4
{[%clk 0:02:35.6]} 47... bxc4 {[%clk 0:02:37]} 48. a4 {[%clk 0:02:33.4]} 48...
c3 {[%clk 0:02:35.6]} 49. Kd3 {[%clk 0:02:32.2]} 49... Kxf5 {[%clk 0:02:30.2]}
50. Kxc3 {[%clk 0:02:31.1]} 50... g5 {[%clk 0:02:29.8]} 51. Kb4 {[%clk
0:02:30.6]} 51... g4 {[%clk 0:02:28.9]} 52. Ka5 {[%clk 0:02:28.9]} 52... g3
{[%clk 0:02:28.8]} 53. Kxa6 {[%clk 0:02:28.3]} 53... g2 {[%clk 0:02:28.7]} 54.
a5 {[%clk 0:02:27.8]} 54... g1=Q {[%clk 0:02:28.6]} 55. Kb7 {[%clk 0:02:26.1]}
55... Qh1+ {[%clk 0:02:25.9]} 56. Kb8 {[%clk 0:02:23.6]} 56... Qxh5 {[%clk
0:02:25.8]} 57. a6 {[%clk 0:02:22.9]} 57... Qe8+ {[%clk 0:02:25.4]} 58. Kb7
{[%clk 0:02:21.7]} 58... h5 {[%clk 0:02:25.3]} 59. a7 {[%clk 0:02:21.1]} 59...
h4 {[%clk 0:02:25.1]} 60. a8=Q {[%clk 0:02:19.9]} 60... Qxa8+ {[%clk 0:02:21.4]}
61. Kxa8 {[%clk 0:02:18.9]} 61... h3 {[%clk 0:02:21.3]} 62. Kb8 {[%clk
0:02:18.3]} 62... h2 {[%clk 0:02:21.2]} 63. Kc7 {[%clk 0:02:17.7]} 63... h1=Q
{[%clk 0:02:21.1]} 64. Kd8 {[%clk 0:02:17.1]} 64... Qd1+ {[%clk 0:02:21]} 65.
Ke7 {[%clk 0:02:16.5]} 65... Qd5 {[%clk 0:02:19]} 66. Kf8 {[%clk 0:02:15.5]}
66... Qb7 {[%clk 0:02:17.9]} 67. Kg8 {[%clk 0:02:14.3]} 67... Kg6 {[%clk
0:02:16.7]} 68. Kf8 {[%clk 0:02:13.4]} 68... Qf7# {[%clk 0:02:15.6]} 0-1

[Event "Live Chess"]
[Site "Chess.com"]
[Date "2023.05.20"]
[Round "-"]
[White "mikkyb4"]
[Black "JoshMcK"]
[Result "0-1"]
[WhiteElo "1009"]
[BlackElo "1552"]
[TimeControl "300"]
[EndTime "14:41:15 PDT"]
[Termination "JoshMcK won on time"]

1. e4 {[%clk 0:04:54.3]} 1... c6 {[%clk 0:04:56.7]} 2. d4 {[%clk 0:04:52.4]}
2... d5 {[%clk 0:04:56.6]} 3. e5 {[%clk 0:04:51.6]} 3... c5 {[%clk 0:04:55.5]}
4. dxc5 {[%clk 0:04:49.9]} 4... e6 {[%clk 0:04:54.6]} 5. b4 {[%clk 0:04:47]}
5... b6 {[%clk 0:04:48.9]} 6. Be3 {[%clk 0:04:43.1]} 6... bxc5 {[%clk
0:04:46.5]} 7. bxc5 {[%clk 0:04:41.5]} 7... Bb7 {[%clk 0:04:44.7]} 8. Nf3 {[%clk
0:04:31.6]} 8... Qa5+ {[%clk 0:04:42.9]} 9. c3 {[%clk 0:04:30]} 9... Bxc5 {[%clk
0:04:42.8]} 10. Nd4 {[%clk 0:04:21.9]} 10... Bxd4 {[%clk 0:04:34.9]} 11. Bxd4
{[%clk 0:04:20.1]} 11... Nc6 {[%clk 0:04:34.4]} 12. Be3 {[%clk 0:04:08.3]} 12...
Nxe5 {[%clk 0:04:30.2]} 13. Be2 {[%clk 0:04:02.8]} 13... Nf6 {[%clk 0:04:27.1]}
14. Qb3 {[%clk 0:03:55.7]} 14... Ba6 {[%clk 0:04:14.6]} 15. Bxa6 {[%clk
0:03:43.6]} 15... Qxa6 {[%clk 0:04:14.5]} 16. Na3 {[%clk 0:03:36.1]} 16... O-O
{[%clk 0:04:11.9]} 17. Qb5 {[%clk 0:03:29]} 17... Nd3+ {[%clk 0:04:05.2]} 18.
Kd2 {[%clk 0:03:14.2]} 18... Qxb5 {[%clk 0:03:52]} 19. Nxb5 {[%clk 0:03:12.5]}
19... Nb2 {[%clk 0:03:50.6]} 20. Rab1 {[%clk 0:02:47.8]} 20... Nc4+ {[%clk
0:03:48.8]} 21. Ke2 {[%clk 0:02:45.8]} 21... Nxe3 {[%clk 0:03:47.6]} 22. Kxe3
{[%clk 0:02:44.7]} 22... Ne4 {[%clk 0:03:43.9]} 23. f3 {[%clk 0:02:35.6]} 23...
Nc5 {[%clk 0:03:41.3]} 24. Rhc1 {[%clk 0:02:27]} 24... a6 {[%clk 0:03:38.2]} 25.
Nd4 {[%clk 0:01:58.6]} 25... Rfc8 {[%clk 0:03:24.1]} 26. Nb3 {[%clk 0:01:43.9]}
26... Na4 {[%clk 0:03:19.6]} 27. Kd2 {[%clk 0:01:31.4]} 27... Rc7 {[%clk
0:03:13.9]} 28. Nd4 {[%clk 0:01:05.7]} 28... Rac8 {[%clk 0:03:09.9]} 29. Rb4
{[%clk 0:00:53.2]} 29... Rxc3 {[%clk 0:02:58.5]} 30. Rxc3 {[%clk 0:00:51.9]}
30... Nxc3 {[%clk 0:02:56.6]} 31. Rb7 {[%clk 0:00:35]} 31... Nxa2 {[%clk
0:02:50.2]} 32. Ra7 {[%clk 0:00:29.9]} 32... Nb4 {[%clk 0:02:49.1]} 33. h4
{[%clk 0:00:19.2]} 33... g6 {[%clk 0:02:48]} 34. g4 {[%clk 0:00:17.9]} 34... e5
{[%clk 0:02:35]} 35. Nb3 {[%clk 0:00:11.6]} 35... Rc2+ {[%clk 0:02:31.2]} 36.
Kd1 {[%clk 0:00:09.4]} 36... Rf2 {[%clk 0:02:20.2]} 37. Ra8+ {[%clk 0:00:07.5]}
37... Kg7 {[%clk 0:02:18.6]} 38. Nc5 {[%clk 0:00:06.1]} 38... Rxf3 {[%clk
0:02:13.3]} 39. Nd7 {[%clk 0:00:04.5]} 39... Rf1+ {[%clk 0:01:57.8]} 40. Ke2
{[%clk 0:00:03.1]} 40... Rh1 {[%clk 0:01:52]} 41. Nxe5 {[%clk 0:00:01.3]} 41...
Rh2+ {[%clk 0:01:48.6]} 0-1

[Event "Live Chess"]
[Site "Chess.com"]
[Date "2023.05.20"]
[Round "-"]
[White "Singapourfeuj"]
[Black "JoeyCage"]
[Result "1-0"]
[WhiteElo "2250"]
[BlackElo "2296"]
[TimeControl "300"]
[EndTime "14:41:21 PDT"]
[Termination "Singapourfeuj won by checkmate"]

1. d4 {[%clk 0:04:59.5]} 1... g6 {[%clk 0:04:56.3]} 2. Nf3 {[%clk 0:04:58.3]}
2... Bg7 {[%clk 0:04:55.3]} 3. h4 {[%clk 0:04:57]} 3... h5 {[%clk 0:04:53.7]} 4.
Bg5 {[%clk 0:04:55.1]} 4... c5 {[%clk 0:04:51.2]} 5. e3 {[%clk 0:04:54.1]} 5...
Qb6 {[%clk 0:04:49.3]} 6. Nbd2 {[%clk 0:04:52.9]} 6... Qxb2 {[%clk 0:04:46.3]}
7. Rb1 {[%clk 0:04:52]} 7... Qc3 {[%clk 0:04:45]} 8. Rb3 {[%clk 0:04:49.5]} 8...
Qa5 {[%clk 0:04:43.2]} 9. Bc4 {[%clk 0:04:48.1]} 9... cxd4 {[%clk 0:04:36.2]}
10. exd4 {[%clk 0:04:46.2]} 10... Nc6 {[%clk 0:04:35]} 11. O-O {[%clk
0:04:44.5]} 11... Nf6 {[%clk 0:04:32.9]} 12. d5 {[%clk 0:04:42.9]} 12... Nb4
{[%clk 0:04:25.1]} 13. d6 {[%clk 0:04:37.9]} 13... e6 {[%clk 0:04:19.7]} 14.
Bxf6 {[%clk 0:04:36.7]} 14... Bxf6 {[%clk 0:04:17.7]} 15. Ne4 {[%clk 0:04:35.9]}
15... Bg7 {[%clk 0:04:16.2]} 16. Qd2 {[%clk 0:04:34.9]} 16... Nc6 {[%clk
0:04:12.4]} 17. Qf4 {[%clk 0:04:28.4]} 17... Qf5 {[%clk 0:04:09.9]} 18. Qe3
{[%clk 0:04:27.5]} 18... Ne5 {[%clk 0:04:00.5]} 19. Ng3 {[%clk 0:04:23.4]} 19...
Nxc4 {[%clk 0:03:47.9]} 20. Nxf5 {[%clk 0:04:22.4]} 20... Nxe3 {[%clk
0:03:46.7]} 21. Nxg7+ {[%clk 0:04:21.5]} 21... Kf8 {[%clk 0:03:45.6]} 22. Nxe6+
{[%clk 0:04:16.6]} 22... fxe6 {[%clk 0:03:35.2]} 23. fxe3 {[%clk 0:04:15.7]}
23... Kg7 {[%clk 0:03:32]} 24. Ne5 {[%clk 0:04:13.3]} 24... Rf8 {[%clk
0:03:30.3]} 25. Rxf8 {[%clk 0:04:11.4]} 25... Kxf8 {[%clk 0:03:29]} 26. e4
{[%clk 0:04:10.8]} 26... b6 {[%clk 0:03:25.3]} 27. Rf3+ {[%clk 0:04:08.2]} 27...
Kg8 {[%clk 0:03:22.8]} 28. Nxg6 {[%clk 0:04:06.9]} 28... Bb7 {[%clk 0:03:20.5]}
29. Ne7+ {[%clk 0:04:03.8]} 29... Kg7 {[%clk 0:03:16.6]} 30. Rg3+ {[%clk
0:04:02.6]} 30... Kf6 {[%clk 0:03:04]} 31. Ng8+ {[%clk 0:03:56.8]} 31... Ke5
{[%clk 0:03:01.5]} 32. Rg5+ {[%clk 0:03:54.3]} 32... Kxe4 {[%clk 0:03:00.3]} 33.
Nf6+ {[%clk 0:03:53.1]} 33... Ke3 {[%clk 0:02:57.9]} 34. Nxd7 {[%clk 0:03:49.5]}
34... Rd8 {[%clk 0:02:56.3]} 35. Re5+ {[%clk 0:03:34.7]} 35... Kd2 {[%clk
0:02:49]} 36. Nf6 {[%clk 0:03:31.6]} 36... Rxd6 {[%clk 0:02:45]} 37. Rxh5 {[%clk
0:03:30.1]} 37... Kxc2 {[%clk 0:02:42.7]} 38. Re5 {[%clk 0:03:28.7]} 38... Rd2
{[%clk 0:02:34.2]} 39. Rg5 {[%clk 0:03:27.5]} 39... Rd4 {[%clk 0:02:30.4]} 40.
h5 {[%clk 0:03:24.9]} 40... Rf4 {[%clk 0:02:15]} 41. Ng4 {[%clk 0:03:15.9]}
41... Be4 {[%clk 0:02:08.7]} 42. h6 {[%clk 0:03:14.3]} 42... Rf7 {[%clk
0:02:01.7]} 43. Nf2 {[%clk 0:03:09.6]} 43... Bf5 {[%clk 0:01:58.7]} 44. g4
{[%clk 0:03:08.4]} 44... Bh7 {[%clk 0:01:55.1]} 45. Rg7 {[%clk 0:03:03.6]} 45...
Rxg7 {[%clk 0:01:53.9]} 46. hxg7 {[%clk 0:03:02.9]} 46... Kb2 {[%clk 0:01:53]}
47. g5 {[%clk 0:02:59.2]} 47... Kxa2 {[%clk 0:01:51.5]} 48. Ng4 {[%clk
0:02:58.1]} 48... e5 {[%clk 0:01:49.6]} 49. Nf6 {[%clk 0:02:57.2]} 49... b5
{[%clk 0:01:46]} 50. Nxh7 {[%clk 0:02:56.3]} 50... b4 {[%clk 0:01:44]} 51. g8=Q+
{[%clk 0:02:55]} 51... Ka3 {[%clk 0:01:43.3]} 52. Qa8 {[%clk 0:02:51.9]} 52...
b3 {[%clk 0:01:41.6]} 53. Qxa7+ {[%clk 0:02:50.9]} 53... Kb4 {[%clk 0:01:41]}
54. Qb6+ {[%clk 0:02:50]} 54... Kc3 {[%clk 0:01:40]} 55. g6 {[%clk 0:02:49.3]}
55... b2 {[%clk 0:01:38.9]} 56. g7 {[%clk 0:02:48.5]} 56... Kc2 {[%clk
0:01:38.8]} 57. Qxb2+ {[%clk 0:02:47.1]} 57... Kxb2 {[%clk 0:01:38.1]} 58. g8=Q
{[%clk 0:02:45.4]} 58... Kc3 {[%clk 0:01:38]} 59. Qd5 {[%clk 0:02:44.1]} 59...
e4 {[%clk 0:01:36.7]} 60. Qxe4 {[%clk 0:02:43.2]} 60... Kd2 {[%clk 0:00:49.6]}
61. Qf3 {[%clk 0:02:37.2]} 61... Kc2 {[%clk 0:00:30.5]} 62. Qd5 {[%clk
0:02:32.8]} 62... Kc3 {[%clk 0:00:22.2]} 63. Kf2 {[%clk 0:02:31.9]} 63... Kb4
{[%clk 0:00:18.9]} 64. Qc6 {[%clk 0:02:30.6]} 64... Kb3 {[%clk 0:00:16.7]} 65.
Ke2 {[%clk 0:02:29.7]} 65... Kb4 {[%clk 0:00:14.8]} 66. Kd3 {[%clk 0:02:28.9]}
66... Ka5 {[%clk 0:00:12]} 67. Qb7 {[%clk 0:02:27.1]} 67... Ka4 {[%clk
0:00:05.8]} 68. Kc4 {[%clk 0:02:25.8]} 68... Ka3 {[%clk 0:00:00.2]} 69. Qb3#
{[%clk 0:02:24.2]} 1-0

[Event "Live Chess"]
[Site "Chess.com"]
[Date "2023.05.20"]
[Round "-"]
[White "VovaOvchar1990"]
[Black "raminguy"]
[Result "0-1"]
[WhiteElo "1231"]
[BlackElo "1962"]
[TimeControl "300"]
[EndTime "14:41:21 PDT"]
[Termination "raminguy won by checkmate"]

1. e4 {[%clk 0:04:57.8]} 1... e5 {[%clk 0:04:59]} 2. Bc4 {[%clk 0:04:56.4]} 2...
Nc6 {[%clk 0:04:58.3]} 3. Nf3 {[%clk 0:04:50.6]} 3... Bc5 {[%clk 0:04:56.5]} 4.
Nc3 {[%clk 0:04:49.3]} 4... Nf6 {[%clk 0:04:55.4]} 5. O-O {[%clk 0:04:47.9]}
5... h6 {[%clk 0:04:53.9]} 6. h3 {[%clk 0:04:46.3]} 6... a5 {[%clk 0:04:52.3]}
7. a3 {[%clk 0:04:44.8]} 7... O-O {[%clk 0:04:50.6]} 8. d3 {[%clk 0:04:39.3]}
8... d6 {[%clk 0:04:48.6]} 9. Be3 {[%clk 0:04:35.5]} 9... Bxe3 {[%clk
0:04:48.1]} 10. fxe3 {[%clk 0:04:34.3]} 10... Be6 {[%clk 0:04:48]} 11. Ba2
{[%clk 0:04:30.9]} 11... Bxa2 {[%clk 0:04:45.4]} 12. Nxa2 {[%clk 0:04:29]} 12...
d5 {[%clk 0:04:43]} 13. exd5 {[%clk 0:04:25.9]} 13... Nxd5 {[%clk 0:04:41.8]}
14. e4 {[%clk 0:04:24.6]} 14... Ne3 {[%clk 0:04:40.6]} 15. Qe2 {[%clk
0:04:22.5]} 15... Nxf1 {[%clk 0:04:38.6]} 16. Rxf1 {[%clk 0:04:21.7]} 16... Nd4
{[%clk 0:04:34.5]} 17. Nxd4 {[%clk 0:04:16.9]} 17... Qxd4+ {[%clk 0:04:34.4]}
18. Kh1 {[%clk 0:04:14.6]} 18... Qxb2 {[%clk 0:04:33.3]} 19. Nc1 {[%clk
0:04:12.2]} 19... Qxa3 {[%clk 0:04:31.7]} 20. Nb3 {[%clk 0:04:09.7]} 20... a4
{[%clk 0:04:28.8]} 21. Ra1 {[%clk 0:04:06.8]} 21... Qb2 {[%clk 0:03:55.4]} 22.
Rxa4 {[%clk 0:03:50]} 22... Rxa4 {[%clk 0:03:52.8]} 23. Nc5 {[%clk 0:03:49.3]}
23... Ra2 {[%clk 0:03:48.6]} 24. Nd7 {[%clk 0:03:43.5]} 24... Qxc2 {[%clk
0:03:46.7]} 25. Qg4 {[%clk 0:03:41.1]} 25... Qxg2+ {[%clk 0:03:37.6]} 26. Qxg2
{[%clk 0:03:37.2]} 26... Rxg2 {[%clk 0:03:37.1]} 27. Kxg2 {[%clk 0:03:32.9]}
27... f6 {[%clk 0:03:34.8]} 28. Nxf8 {[%clk 0:03:30]} 28... Kxf8 {[%clk
0:03:34]} 29. Kf3 {[%clk 0:03:28.4]} 29... Ke7 {[%clk 0:03:32.8]} 30. Kg4 {[%clk
0:03:27.2]} 30... g6 {[%clk 0:03:32.1]} 31. h4 {[%clk 0:03:25.5]} 31... h5+
{[%clk 0:03:31.1]} 32. Kg3 {[%clk 0:03:23]} 32... Kd6 {[%clk 0:03:31]} 33. Kf3
{[%clk 0:03:21.2]} 33... Kc5 {[%clk 0:03:30.2]} 34. Ke3 {[%clk 0:03:17.6]} 34...
b5 {[%clk 0:03:28.8]} 35. Kd2 {[%clk 0:03:12.6]} 35... Kd4 {[%clk 0:03:27.8]}
36. Ke2 {[%clk 0:03:09.6]} 36... c5 {[%clk 0:03:27.7]} 37. Kd2 {[%clk
0:03:08.3]} 37... b4 {[%clk 0:03:26.7]} 38. Kc2 {[%clk 0:03:06.4]} 38... b3+
{[%clk 0:03:23.5]} 39. Kd2 {[%clk 0:03:04.8]} 39... f5 {[%clk 0:03:17]} 40. exf5
{[%clk 0:03:02.4]} 40... gxf5 {[%clk 0:03:16.9]} 41. Kc1 {[%clk 0:02:58.4]}
41... Kxd3 {[%clk 0:03:15.1]} 42. Kb2 {[%clk 0:02:54.4]} 42... c4 {[%clk
0:03:13.4]} 43. Kc1 {[%clk 0:02:52.6]} 43... f4 {[%clk 0:03:12.4]} 44. Kd1
{[%clk 0:02:51.8]} 44... f3 {[%clk 0:03:11.6]} 45. Ke1 {[%clk 0:02:51.3]} 45...
b2 {[%clk 0:03:10.4]} 46. Kf1 {[%clk 0:02:50.6]} 46... b1=Q+ {[%clk 0:03:08.3]}
47. Kf2 {[%clk 0:02:48.6]} 47... e4 {[%clk 0:03:07]} 48. Kg3 {[%clk 0:02:45.9]}
48... c3 {[%clk 0:03:06]} 49. Kf2 {[%clk 0:02:44.2]} 49... c2 {[%clk 0:03:05.8]}
50. Kg3 {[%clk 0:02:42.4]} 50... c1=Q {[%clk 0:03:03]} 51. Kf2 {[%clk
0:02:39.6]} 51... Qg1# {[%clk 0:03:01.1]} 0-1

[Event "Live Chess"]
[Site "Chess.com"]
[Date "2023.05.20"]
[Round "-"]
[White "WelshTiger"]
[Black "GMHarry-youtube"]
[Result "1-0"]
[WhiteElo "2399"]
[BlackElo "2037"]
[TimeControl "300"]
[EndTime "14:41:28 PDT"]
[Termination "WelshTiger won on time"]

1. e4 {[%clk 0:04:58.2]} 1... c5 {[%clk 0:04:54.4]} 2. Nf3 {[%clk 0:04:56.8]}
2... d6 {[%clk 0:04:53.3]} 3. c3 {[%clk 0:04:55.1]} 3... Nf6 {[%clk 0:04:51.8]}
4. h3 {[%clk 0:04:54.8]} 4... Nc6 {[%clk 0:04:42.8]} 5. Bd3 {[%clk 0:04:53.5]}
5... g6 {[%clk 0:04:40.3]} 6. Bc2 {[%clk 0:04:51.9]} 6... e5 {[%clk 0:04:39.3]}
7. d4 {[%clk 0:04:50.9]} 7... Bg7 {[%clk 0:04:36.7]} 8. O-O {[%clk 0:04:48.7]}
8... O-O {[%clk 0:04:35.3]} 9. Bg5 {[%clk 0:04:47.3]} 9... h6 {[%clk 0:04:33.2]}
10. Bxf6 {[%clk 0:04:46.3]} 10... Bxf6 {[%clk 0:04:31.2]} 11. dxc5 {[%clk
0:04:45.6]} 11... dxc5 {[%clk 0:04:30.1]} 12. Qe2 {[%clk 0:04:41.5]} 12... Bg7
{[%clk 0:04:27.6]} 13. a4 {[%clk 0:04:40.5]} 13... Kh7 {[%clk 0:04:19]} 14. Na3
{[%clk 0:04:39.4]} 14... Be6 {[%clk 0:04:14.7]} 15. Nc4 {[%clk 0:04:35.1]} 15...
Bxc4 {[%clk 0:04:13.6]} 16. Qxc4 {[%clk 0:04:33.7]} 16... b6 {[%clk 0:04:09.7]}
17. Rfd1 {[%clk 0:04:31.9]} 17... Qc7 {[%clk 0:04:07.3]} 18. Rd2 {[%clk
0:04:25.4]} 18... Rad8 {[%clk 0:04:03.7]} 19. Rad1 {[%clk 0:04:24]} 19... Rxd2
{[%clk 0:04:02.7]} 20. Rxd2 {[%clk 0:04:23.9]} 20... Rd8 {[%clk 0:03:59.8]} 21.
Rd5 {[%clk 0:04:23.4]} 21... Rxd5 {[%clk 0:03:51.6]} 22. exd5 {[%clk 0:04:22.7]}
22... Ne7 {[%clk 0:03:45.4]} 23. d6 {[%clk 0:04:15]} 23... Qxd6 {[%clk 0:03:42]}
24. Qxf7 {[%clk 0:04:14.3]} 24... Qf6 {[%clk 0:03:34.1]} 25. Qe8 {[%clk
0:04:07.7]} 25... Nf5 {[%clk 0:03:00.5]} 26. Bb3 {[%clk 0:04:06.2]} 26... h5
{[%clk 0:02:49]} 27. Bd5 {[%clk 0:03:48.2]} 27... Nh4 {[%clk 0:02:38]} 28. Qg8+
{[%clk 0:03:23.9]} 28... Kh6 {[%clk 0:02:35.3]} 29. Be4 {[%clk 0:03:17.6]} 29...
Nxf3+ {[%clk 0:02:31]} 30. Bxf3 {[%clk 0:03:17.5]} 30... Qf8 {[%clk 0:02:26]}
31. Qe6 {[%clk 0:03:15]} 31... Qf6 {[%clk 0:02:24.7]} 32. Qd7 {[%clk 0:03:14.1]}
32... a5 {[%clk 0:02:21.2]} 33. Be4 {[%clk 0:03:12.4]} 33... Qf4 {[%clk
0:02:13.1]} 34. Qd3 {[%clk 0:02:21.1]} 34... Qc1+ {[%clk 0:02:10]} 35. Kh2
{[%clk 0:02:13.1]} 35... Qf4+ {[%clk 0:02:08.2]} 36. Kg1 {[%clk 0:02:11.5]}
36... Qc1+ {[%clk 0:02:07.2]} 37. Qf1 {[%clk 0:01:48.2]} 37... Qxb2 {[%clk
0:02:02.7]} 38. Qe1 {[%clk 0:01:44.4]} 38... Bf6 {[%clk 0:01:56.8]} 39. Bd3
{[%clk 0:01:40.7]} 39... Qb3 {[%clk 0:01:13.4]} 40. Qe4 {[%clk 0:01:34.9]} 40...
Qf7 {[%clk 0:01:10.2]} 41. g3 {[%clk 0:01:28.9]} 41... Bg7 {[%clk 0:01:06.2]}
42. h4 {[%clk 0:01:27.2]} 42... Qf6 {[%clk 0:01:02.7]} 43. Kg2 {[%clk
0:01:26.5]} 43... Qf7 {[%clk 0:01:01.3]} 44. Qc6 {[%clk 0:01:22.9]} 44... Qf6
{[%clk 0:00:59.3]} 45. Qe4 {[%clk 0:01:21.4]} 45... Qf7 {[%clk 0:00:57.5]} 46.
Bc4 {[%clk 0:01:20.3]} 46... Qf5 {[%clk 0:00:53.8]} 47. Qd5 {[%clk 0:01:19.4]}
47... e4 {[%clk 0:00:48.4]} 48. Qxf5 {[%clk 0:01:05.9]} 48... gxf5 {[%clk
0:00:48.3]} 49. Be6 {[%clk 0:01:05.3]} 49... Kg6 {[%clk 0:00:45.5]} 50. c4
{[%clk 0:01:04]} 50... Bd4 {[%clk 0:00:40.8]} 51. Kf1 {[%clk 0:01:02.3]} 51...
Kf6 {[%clk 0:00:40.2]} 52. Bd7 {[%clk 0:01:01.1]} 52... Be5 {[%clk 0:00:38.5]}
53. Ke2 {[%clk 0:00:59.9]} 53... f4 {[%clk 0:00:36.7]} 54. gxf4 {[%clk
0:00:58.3]} 54... Bxf4 {[%clk 0:00:36.6]} 55. Bc6 {[%clk 0:00:57.5]} 55... Kf5
{[%clk 0:00:35.4]} 56. Bd5 {[%clk 0:00:56.5]} 56... Be5 {[%clk 0:00:33.1]} 57.
f3 {[%clk 0:00:54.4]} 57... exf3+ {[%clk 0:00:31.9]} 58. Kxf3 {[%clk 0:00:54.3]}
58... Bd4 {[%clk 0:00:30.2]} 59. Be4+ {[%clk 0:00:54.2]} 59... Kf6 {[%clk
0:00:29.2]} 60. Bc6 {[%clk 0:00:54.1]} 60... Be5 {[%clk 0:00:28.3]} 61. Ke4
{[%clk 0:00:53.6]} 61... Bg3 {[%clk 0:00:26.8]} 62. Bd7 {[%clk 0:00:53.2]} 62...
Bxh4 {[%clk 0:00:26]} 63. Bh3 {[%clk 0:00:53.1]} 63... Bg3 {[%clk 0:00:25.1]}
64. Bg2 {[%clk 0:00:52.2]} 64... Kg5 {[%clk 0:00:24]} 65. Bh3 {[%clk 0:00:52.1]}
65... Kh4 {[%clk 0:00:23.3]} 66. Bg2 {[%clk 0:00:51]} 66... Kg4 {[%clk 0:00:23]}
67. Bf3+ {[%clk 0:00:49.7]} 67... Kg5 {[%clk 0:00:22.6]} 68. Bg2 {[%clk
0:00:49.2]} 68... h4 {[%clk 0:00:22.2]} 69. Bh3 {[%clk 0:00:48.7]} 69... Kh5
{[%clk 0:00:21.4]} 70. Kf5 {[%clk 0:00:48]} 70... Bc7 {[%clk 0:00:19.3]} 71.
Bg4+ {[%clk 0:00:46.8]} 71... Kh6 {[%clk 0:00:18.2]} 72. Bh3 {[%clk 0:00:46.7]}
72... Kh5 {[%clk 0:00:17]} 73. Kf6 {[%clk 0:00:44.5]} 73... b5 {[%clk
0:00:15.1]} 74. cxb5 {[%clk 0:00:43.1]} 74... c4 {[%clk 0:00:14.1]} 75. Ke7
{[%clk 0:00:35.9]} 75... c3 {[%clk 0:00:13.4]} 76. Bf5 {[%clk 0:00:35.2]} 76...
h3 {[%clk 0:00:11.1]} 77. Kd7 {[%clk 0:00:30.8]} 77... h2 {[%clk 0:00:09.7]} 78.
Be4 {[%clk 0:00:29.9]} 78... h1=Q {[%clk 0:00:08.5]} 79. Bxh1 {[%clk 0:00:28.7]}
79... c2 {[%clk 0:00:08]} 80. Kxc7 {[%clk 0:00:26.7]} 80... c1=Q+ {[%clk
0:00:07.9]} 81. Bc6 {[%clk 0:00:25.6]} 81... Qc2 {[%clk 0:00:06.5]} 82. b6
{[%clk 0:00:25.1]} 82... Qc5 {[%clk 0:00:05]} 83. b7 {[%clk 0:00:24.1]} 83...
Qa7 {[%clk 0:00:04.5]} 84. Kc8 {[%clk 0:00:22.4]} 84... Qa6 {[%clk 0:00:03.9]}
85. Kd7 {[%clk 0:00:19.6]} 85... Qa7 {[%clk 0:00:03]} 86. Kc7 {[%clk 0:00:19.2]}
86... Kh6 {[%clk 0:00:00.9]} 87. Bb5 {[%clk 0:00:16.2]} 87... Kg6 {[%clk
0:00:00.8]} 88. Kc8 {[%clk 0:00:14.9]} 88... Kf6 {[%clk 0:00:00.7]} 89. b8=Q
{[%clk 0:00:13.5]} 89... Qxb8+ {[%clk 0:00:00.6]} 90. Kxb8 {[%clk 0:00:12.7]}
90... Ke6 {[%clk 0:00:00.5]} 91. Kb7 {[%clk 0:00:12.5]} 91... Kd6 {[%clk
0:00:00.4]} 92. Kb6 {[%clk 0:00:12.2]} 1-0